bitfinex/quotes_ETHUSD_20250115
["timestamp","ask_amount","ask_price","bid_price","bid_amount"]
[1736955386556,0.55,3346.0,3345.1,3.02617733]
[1736955386914,0.76034547,3346.4,3345.1,0.03675733]
[1736955387120,0.8,3347.0,3345.7,0.7564]
[1736955387314,0.8,3347.0,3345.7,3.74528]
[1736955387643,3.0,3346.8,3345.8,0.03668969]
[1736955387824,0.55,3346.5,3345.8,0.03668969]
[1736955388023,3.53819,3346.5,3345.8,0.03668969]
[1736955388265,3.59438812,3347.2,3345.8,0.03668969]
[1736955388453,2.98743,3347.4,3346.3,0.7564]
[1736955388657,0.14923628,3347.8,3346.4,0.231]
[1736955388958,3.0,3348.4,3346.9,3.74421]
[1736955389159,0.8,3348.3,3346.9,3.74421]
[1736955389458,0.8,3348.3,3347.0,3.02400397]
[1736955389459,2.98689,3348.0,3347.0,3.02400397]
[1736955389658,0.298689,3347.9,3347.0,0.03632397]
[1736955389858,0.298689,3347.9,3346.4,0.7564]
[1736955389859,2.98799,3346.8,3346.4,0.7564]
[1736955390161,2.98766,3347.1,3346.0,0.9874]
[1736955390162,0.55,3346.9,3346.0,0.9874]
[1736955390459,3.0,3346.8,3346.1,0.03589476]
[1736955390624,0.55,3346.7,3345.9,0.231]
[1736955390824,0.55,3346.5,3346.0,0.03591016]
[1736955391156,2.98844,3346.3,3346.0,0.03591016]
[1736955391356,0.55,3346.7,3346.0,0.03591016]
[1736955391557,1.11171114,3347.4,3345.8,0.231]
[1736955391857,0.31171114,3347.4,3346.3,2.98831]
[1736955392077,2.98749,3347.3,3346.4,0.03584856]
[1736955392216,0.55,3347.1,3346.0,0.7564]
[1736955392412,0.55,3347.1,3346.1,0.03589476]
[1736955392618,0.55,3346.9,3346.1,0.03589476]
[1736955392818,0.55,3347.3,3346.1,0.03589476]
[1736955392819,2.98756,3347.3,3346.1,3.02441476]
[1736955393170,0.55,3347.2,3346.1,0.03589476]
[1736955393517,0.55,3347.1,3346.0,0.9874]
[1736955393761,0.31171114,3347.4,3346.2,0.03587936]
[1736955393990,0.31171114,3347.4,3346.1,0.03589476]
[1736955394126,2.98771,3347.1,3346.0,3.74502]
[1736955394490,0.55,3346.4,3346.1,0.26689476]
[1736955394615,0.55,3346.4,3346.1,2.26689476]
[1736955395076,3.771,3347.0,3346.1,2.26689476]
[1736955395077,0.55,3346.6,3346.1,2.03589476]
[1736955395252,2.98846,3346.2,3346.1,2.03589476]
[1736955395557,6.53846,3346.2,3346.1,2.03589476]
[1736955395860,1.50267,3346.2,3346.1,2.0]
[1736955396065,0.771,3347.0,3346.1,2.03606559]
[1736955396267,0.55,3346.3,3346.1,2.0]
[1736955396479,3.53846,3346.2,3346.1,2.0]
[1736955396653,3.55,3346.2,3346.1,2.0]
[1736955396860,0.771,3347.0,3346.1,2.0]
[1736955397037,2.98833,3346.4,3346.1,2.7563]
[1736955397367,3.53839,3346.3,3346.1,2.0]
[1736955397862,5.98807,3346.7,3346.1,2.0]
[1736955397863,11.11651087,3346.2,3346.1,2.0]
[1736955398767,7.30946,3346.2,3346.1,2.0]
[1736955399150,6.53846,3346.2,3346.1,2.0]
[1736955399762,7.491127,3346.2,3346.1,2.0]
[1736955400578,0.771,3346.6,3346.1,2.0]
[1736955400720,2.98785,3346.9,3346.1,2.0]
[1736955400924,0.771,3347.1,3346.1,2.231]
[1736955401232,0.60058765,3347.2,3346.2,0.7563]
[1736955401425,2.98752,3347.3,3346.3,2.98837]
[1736955401620,2.98766,3347.1,3346.2,0.7563]
[1736955401826,3.0,3347.3,3346.2,0.7563]
[1736955402064,0.771,3347.5,3346.2,0.7563]
[1736955402270,2.98739,3347.4,3346.2,0.7563]
[1736955402473,0.55,3346.9,3346.2,0.7563]
[1736955402768,0.55,3346.6,3346.2,0.7563]
[1736955402977,3.53812,3346.6,3346.2,0.7563]
[1736955403126,0.55,3346.8,3346.1,2.0]
[1736955403537,0.548689,3347.9,3346.1,2.0]
[1736955403538,2.98831,3346.4,3346.2,0.03430867]
[1736955403877,2.98831,3346.4,3346.1,2.0]
[1736955404086,0.55,3346.8,3346.2,0.03430867]
[1736955404375,0.31171895,3346.4,3346.1,2.0]
[1736955405086,0.31171895,3346.4,3346.2,0.03383067]
[1736955405375,3.30006895,3346.4,3346.1,2.0]
[1736955405881,3.53846,3346.2,3346.1,2.0]
[1736955406035,6.53846,3346.2,3346.1,2.0]
[1736955406239,7.5223019,3346.2,3346.1,2.0]
[1736955406940,8.3443019,3346.2,3346.1,2.0]
[1736955407151,8.3443019,3346.2,3345.0,0.7745]
[1736955407152,2.98944,3345.1,3344.9,0.84518656]
[1736955407347,3.53953,3345.0,3344.9,0.84518656]
[1736955408004,6.53953,3345.0,3344.9,0.84518656]
[1736955408321,7.492414,3345.0,3344.9,0.84518656]
[1736955408652,8.314414,3345.0,3344.9,0.84518656]
[1736955409455,8.314414,3345.0,3344.9,0.71868656]
[1736955410275,6.53953,3345.0,3344.9,0.71868656]
[1736955410471,4.41489225,3345.5,3344.9,0.71868656]
[1736955410678,0.8104,3345.9,3344.9,0.71868656]
[1736955410967,0.58970398,3345.8,3344.9,0.71868656]
[1736955411199,2.98861,3346.1,3345.1,0.8229]
[1736955411350,2.98866,3346.0,3345.1,0.8229]
[1736955411553,3.80705087,3345.9,3345.1,0.8229]
[1736955411807,5.98895,3345.7,3345.1,0.8229]
[1736955412100,0.0545742,3346.2,3345.1,0.8229]
[1736955412305,3.0545742,3346.2,3345.1,0.8229]
[1736955412449,2.98914,3345.5,3345.1,0.8229]
[1736955412807,2.98918,3345.4,3345.1,0.8229]
[1736955413151,0.31180522,3345.6,3344.9,0.71868656]
[1736955413152,0.55,3345.3,3344.9,0.71868656]
[1736955413368,0.55,3345.1,3344.9,0.71868656]
[1736955413605,3.31180522,3345.6,3344.9,0.71868656]
[1736955413606,3.53953,3345.0,3344.9,0.71868656]
[1736955413800,6.893483,3345.0,3344.9,0.71868656]
[1736955415154,5.98953,3345.0,3344.9,0.71868656]
[1736955415354,2.99204,3342.2,3341.8,2.92530125]
[1736955415667,7.60704687,3341.9,3341.8,0.92530125]
[1736955415891,5.74251529,3341.9,3340.0,1.18472599]
[1736955416074,0.249996,3341.5,3340.4,2.9936]
[1736955416403,0.249996,3341.5,3340.0,1.18472599]
[1736955416404,0.249996,3341.3,3340.8,1.19200615]
[1736955416704,0.249996,3341.9,3341.2,2.99292]
[1736955417013,0.249996,3342.7,3341.5,2.99265]
[1736955417211,3.249996,3342.8,3341.6,0.8229]
[1736955417356,0.249996,3343.1,3341.7,0.381555]
[1736955417558,3.30266269,3343.5,3342.2,2.99201]
[1736955417775,0.249996,3343.3,3342.4,0.8229]
[1736955418356,0.249996,3343.3,3343.0,35.0]
[1736955418612,0.249996,3343.3,3341.7,0.381555]
[1736955418613,0.249996,3342.6,3342.0,0.241]
[1736955418805,0.249996,3342.4,3342.0,0.241]
[1736955419155,0.249996,3342.4,3342.1,35.0]
[1736955419559,0.249996,3342.4,3342.1,35.241]
[1736955420110,0.249996,3342.4,3340.8,0.95200615]
[1736955420111,0.249996,3341.4,3340.8,0.95200615]
[1736955420262,0.249996,3341.8,3340.9,3.8161]
[1736955420462,0.8104,3342.4,3340.9,3.8161]
[1736955420463,0.249996,3342.1,3341.0,0.71781062]
[1736955420706,0.249996,3342.1,3341.0,0.241]
[1736955421012,0.249996,3342.1,3341.1,35.0]
[1736955421222,0.249996,3341.8,3341.1,35.0]
[1736955421511,0.249996,3342.3,3341.0,0.241]
[1736955421665,0.3118,3341.1,3341.0,3.23411]
[1736955421859,0.3118,3341.1,3341.0,39.03434861]
[1736955421860,0.0118,3341.1,3341.0,39.03434861]
[1736955422098,0.0118,3341.1,3340.8,0.95200615]
[1736955422306,5.9932,3340.9,3340.8,0.95200615]
[1736955422825,3.0,3340.9,3340.8,0.95200615]
[1736955423471,0.0118,3341.1,3340.8,0.95200615]
[1736955424101,0.0118,3341.1,3340.9,35.0]
[1736955424303,0.0118,3341.1,3340.8,0.95200615]
[1736955424775,0.0118,3341.1,3340.9,35.0]
[1736955425020,0.0118,3341.1,3340.9,37.2409038]
[1736955425218,0.0118,3341.1,3341.0,3.79481]
[1736955425525,2.68893824,3343.7,3341.1,3.0]
[1736955425526,0.249996,3343.1,3341.1,3.0]
[1736955425726,0.249996,3343.1,3341.1,2.0]
[1736955426076,0.249996,3343.1,3341.0,3.0]
[1736955426077,0.249996,3343.1,3342.2,2.99203]
[1736955426361,0.249996,3343.6,3342.6,2.99159]
[1736955426509,3.240796,3343.6,3342.4,3.79355]
[1736955426710,3.249996,3343.8,3342.4,0.8017]
[1736955426948,0.249996,3343.6,3342.7,2.99158]
[1736955427254,0.249996,3343.6,3342.6,2.99166]
[1736955427467,0.249996,3343.6,3342.7,0.379336]
[1736955427832,0.249996,3343.6,3342.5,2.99173]
[1736955428261,0.249996,3343.1,3342.4,0.8017]
[1736955428436,0.249996,3343.1,3342.6,0.241]
[1736955428659,0.249996,3343.4,3342.6,0.241]
[1736955428854,4.35658483,3344.0,3342.6,0.241]
[1736955428855,0.249996,3343.1,3342.6,0.241]
[1736955429156,3.249996,3342.7,3342.3,0.241]
[1736955429657,3.80705087,3343.7,3342.3,0.241]
[1736955429658,0.249996,3342.9,3342.3,0.241]
[1736955429863,0.249996,3342.7,3342.3,0.241]
[1736955430044,0.249996,3342.4,3342.3,0.241]
[1736955430243,0.249996,3342.7,3342.3,0.241]
[1736955430594,3.0,3342.9,3342.3,0.241]
[1736955430595,0.249996,3342.9,3342.3,0.241]
[1736955430994,0.249996,3343.1,3342.3,4.03464]
[1736955431200,0.249996,3343.1,3342.3,1.446164]
[1736955431339,0.249996,3342.6,3342.3,0.241]
[1736955431542,0.249996,3342.6,3341.8,0.8017]
[1736955431739,0.249996,3342.4,3341.9,0.241]
[1736955432002,0.249996,3342.2,3341.9,0.241]
[1736955432357,0.249996,3342.4,3341.9,0.241]
[1736955432841,0.249996,3342.6,3341.9,0.241]
[1736955433045,0.249996,3342.8,3342.0,2.9922]
[1736955433370,0.249996,3343.0,3342.2,2.99199]
[1736955433978,0.249996,3342.7,3342.0,2.9922]
[1736955434207,0.7548,3343.6,3342.0,2.99222]
[1736955434430,0.249996,3343.7,3342.6,0.8017]
[1736955434638,0.249996,3344.1,3342.6,0.8017]
[1736955434852,0.249996,3344.4,3343.7,2.99069]
[1736955435158,0.3117922,3344.7,3343.8,0.241]
[1736955435438,0.249996,3344.5,3343.8,0.248]
[1736955435943,0.249996,3344.3,3343.8,0.248]
[1736955436795,0.249996,3344.0,3343.8,0.248]
[1736955437219,2.99009,3344.4,3343.8,0.248]
[1736955437220,0.249996,3344.4,3343.8,3.23859]
[1736955437441,0.249996,3344.9,3343.8,0.571859]
[1736955437596,0.7548,3345.2,3344.0,2.99037]
[1736955437597,0.249996,3344.7,3344.0,2.99037]
[1736955437796,0.7548,3345.2,3343.8,0.248]
[1736955437797,0.249996,3344.9,3344.1,2.99028]
[1736955437997,0.249996,3344.9,3344.2,2.99022]
[1736955438245,0.249996,3344.7,3343.8,3.23859]
[1736955438448,0.249996,3344.4,3343.5,0.8017]
[1736955438614,0.249996,3344.4,3343.9,0.248]
[1736955439101,0.7548,3345.2,3343.9,0.248]
[1736955439102,0.249996,3344.6,3343.9,3.23849]
[1736955439304,0.8739646,3344.6,3343.9,0.248]
[1736955440444,0.8739646,3344.6,3343.9,3.23851]
[1736955440654,0.249996,3344.8,3343.9,0.248]
[1736955440858,0.249996,3345.3,3344.8,2.98968]
[1736955441007,0.249996,3345.5,3344.9,2.98962]
[1736955441202,0.7548,3345.7,3344.9,2.98962]
[1736955441546,0.7548,3345.7,3344.0,0.8017]
[1736955441547,0.249996,3345.1,3344.0,0.8017]
[1736955441853,3.249996,3345.6,3344.6,2.98987]
[1736955442056,0.249996,3345.2,3344.1,35.0]
[1736955442259,0.249996,3345.4,3344.1,37.99025]
[1736955442468,0.249996,3345.4,3344.7,2.98977]
[1736955442604,0.249996,3345.4,3344.0,0.8017]
[1736955442605,0.249996,3345.4,3344.0,3.8017]
[1736955442801,0.34978238,3345.7,3345.1,2.98942]
[1736955443044,0.34978238,3345.7,3344.1,2.99034]
[1736955443045,0.249996,3345.5,3345.2,0.248]
[1736955443219,0.249996,3345.5,3345.3,0.248]
[1736955443564,0.249996,3345.2,3345.1,0.248]
[1736955443701,0.249996,3345.4,3344.9,0.248]
[1736955443904,0.249996,3345.2,3344.9,0.248]
[1736955444334,0.249996,3345.2,3344.3,2.99016]
[1736955444530,0.249996,3345.2,3344.4,0.248]
[1736955444704,0.00387127,3345.1,3344.4,0.248]
[1736955445167,0.00387127,3345.1,3345.0,2.98953]
[1736955445373,0.00387127,3345.1,3345.0,3.79123]
[1736955445949,1.27e-06,3345.1,3345.0,3.79123]
[1736955446145,1.27e-06,3345.1,3345.0,6.79123]
[1736955446348,1.27e-06,3345.1,3345.0,3.79123]
[1736955446839,1.27e-06,3345.1,3345.0,0.8017]
[1736955447044,1.27e-06,3345.1,3345.0,3.79123]
[1736955447275,1.27e-06,3345.1,3345.0,2.98953]
[1736955448232,1.27e-06,3345.1,3344.6,0.8017]
[1736955448440,1.27e-06,3345.1,3345.0,2.98953]
[1736955448738,1.27e-06,3345.1,3345.0,37.98953]
[1736955449552,1.27e-06,3345.1,3345.0,44.34123]
[1736955449754,0.249996,3347.1,3345.6,2.98893]
[1736955449934,0.7548,3347.4,3345.6,2.98893]
[1736955449935,0.249996,3346.9,3346.3,2.98834]
[1736955450485,3.7548,3347.4,3345.7,7.05725109]
[1736955450486,0.249996,3347.1,3345.8,2.98882]
[1736955450666,0.249996,3347.1,3345.9,1.00460711]
[1736955450981,0.249996,3347.1,3346.1,2.98849]
[1736955451479,0.249996,3347.1,3346.4,2.98822]
[1736955451779,0.249996,3347.1,3346.4,0.248]
[1736955451780,0.249996,3346.7,3346.4,0.248]
[1736955451985,0.249996,3346.9,3346.2,3.23643]
[1736955452189,0.249996,3346.8,3346.2,0.248]
[1736955452392,0.249996,3347.1,3346.2,0.248]
[1736955452553,0.249996,3346.9,3346.4,2.98827]
[1736955452758,0.249996,3346.9,3346.2,0.248]
[1736955452759,0.249996,3346.9,3346.5,2.98817]
[1736955452982,0.249996,3347.3,3346.2,0.248]
[1736955453292,0.249996,3347.9,3347.1,0.8017]
[1736955453485,0.249996,3348.2,3347.4,2.98736]
[1736955453695,0.4586463,3348.2,3347.7,2.98708]
[1736955453892,0.249996,3348.3,3347.5,35.248]
[1736955454072,0.249996,3348.3,3347.7,2.9871]
[1736955454571,0.249996,3348.1,3347.6,2.98721]
[1736955454758,0.249996,3348.1,3347.5,35.248]
[1736955454964,0.249996,3347.8,3347.5,35.0]
[1736955455160,0.249996,3347.7,3347.6,0.248]
[1736955455977,0.249996,3347.5,3346.7,0.7622]
[1736955456310,0.8146,3347.9,3346.8,0.248]
[1736955456441,0.59870709,3348.2,3347.6,2.98712]
[1736955456641,0.84870309,3348.2,3347.1,3.0]
[1736955456882,0.84870309,3348.2,3347.7,2.98704]
[1736955457087,0.249996,3348.2,3347.7,2.98704]
[1736955457301,0.249996,3348.2,3347.6,2.98719]
[1736955457595,0.249996,3348.2,3347.7,2.98711]
[1736955457899,0.249996,3348.2,3347.3,2.98748]
[1736955458078,0.58380971,3348.3,3346.9,5.98778]
[1736955458079,0.249996,3347.9,3347.4,2.98738]
[1736955458278,0.83380571,3348.3,3347.5,0.248]
[1736955458492,0.249996,3348.1,3347.7,2.98704]
[1736955458792,0.249996,3348.1,3347.6,2.9872]
[1736955459290,0.8146,3347.8,3347.1,2.98765]
[1736955459511,0.249996,3347.2,3346.7,3.75018]
[1736955459791,0.249996,3347.2,3347.0,0.248]
[1736955460013,0.3237496,3347.1,3347.0,0.248]
[1736955460899,0.8146,3347.0,3345.9,3.75085]
[1736955461082,0.249996,3346.6,3346.0,0.248]
[1736955461287,0.249996,3347.1,3346.2,2.9884]
[1736955461499,0.249996,3347.6,3347.5,2.9873]
[1736955461657,0.249996,3347.9,3347.5,0.248]
[1736955461862,0.249996,3348.1,3347.7,2.98711]
[1736955462174,0.249996,3348.1,3347.5,0.248]
[1736955462376,3.0,3349.0,3347.9,2.98687]
[1736955462377,0.249996,3348.4,3347.9,2.98687]
[1736955462720,0.249996,3348.7,3348.2,2.98662]
[1736955463015,1.064596,3348.9,3347.7,5.98712]
[1736955463196,1.65364741,3348.9,3347.9,3.74907]
[1736955463402,1.65364741,3348.9,3348.4,2.98649]
[1736955463711,0.249996,3348.3,3347.9,3.74911]
[1736955463911,0.249996,3348.3,3348.0,35.0]
[1736955464414,0.249996,3348.1,3347.5,0.248]
[1736955464713,0.249996,3347.9,3347.5,0.248]
[1736955465128,0.249996,3347.9,3347.4,2.98734]
[1736955465416,0.249996,3347.9,3347.0,3.7499]
[1736955465417,0.249996,3347.9,3347.6,0.238]
[1736955465616,0.799996,3347.7,3347.0,3.74988]
[1736955465820,0.249996,3347.4,3347.2,2.98757]
[1736955465986,0.249996,3347.4,3347.1,0.238]
[1736955467314,0.249996,3347.2,3347.1,0.238]
[1736955467522,0.799996,3347.2,3347.1,0.238]
[1736955467933,0.799996,3347.2,3346.3,2.98833]
[1736955468125,0.249996,3346.7,3346.4,0.238]
[1736955468335,0.249996,3346.7,3346.4,3.22627]
[1736955468823,0.249996,3346.9,3346.6,2.98802]
[1736955469031,0.249996,3347.1,3346.7,2.98801]
[1736955469329,0.8146,3347.3,3346.8,2.98789]
[1736955469330,0.249996,3347.3,3346.8,2.98789]
[1736955469739,0.249996,3347.3,3346.9,2.98778]
[1736955469883,0.249996,3347.3,3346.4,0.238]
[1736955470085,0.249996,3347.3,3346.8,2.98784]
[1736955470392,0.249996,3347.3,3346.4,0.238]
[1736955470604,0.249996,3347.3,3347.0,2.98766]
[1736955470996,0.249996,3347.3,3346.8,2.98789]
[1736955471198,0.249996,3347.6,3346.6,2.98803]
[1736955471424,0.249996,3347.6,3347.4,2.98736]
[1736955471603,0.249996,3347.9,3347.5,0.238]
[1736955471915,0.249996,3347.9,3347.5,3.22528]
[1736955472099,0.249996,3347.9,3347.5,0.238]
[1736955472314,0.249996,3347.9,3347.5,3.22526]
[1736955472517,0.249996,3347.9,3347.7,2.98712]
[1736955473286,0.8136,3348.2,3347.5,0.238]
[1736955473287,0.249996,3347.7,3347.5,0.238]
[1736955473802,0.55,3347.6,3347.5,0.238]
[1736955474251,1.2286936,3347.6,3347.5,0.238]
[1736955475341,8.0295036,3347.6,3347.5,0.238]
[1736955475893,8.0295036,3347.6,3345.6,0.792]
[1736955475894,0.249996,3346.4,3345.6,0.792]
[1736955476132,3.0,3347.5,3345.6,0.792]
[1736955476133,0.249996,3346.2,3345.7,0.238]
[1736955476318,0.249996,3346.2,3345.8,2.98882]
[1736955476512,6.80925109,3348.0,3345.8,2.98882]
[1736955476513,0.249996,3346.5,3346.3,2.98829]
[1736955476838,0.8136,3347.2,3345.9,3.80925109]
[1736955476839,0.249996,3347.0,3345.9,3.80925109]
[1736955476991,0.249996,3346.7,3346.2,2.98843]
[1736955477190,0.249996,3346.9,3346.2,2.98843]
[1736955477419,0.249996,3346.9,3346.8,2.98792]
[1736955477636,0.249996,3346.9,3346.8,3.22592]
[1736955477937,0.8136,3347.6,3346.8,3.22592]
[1736955477938,0.249996,3347.0,3346.8,3.22592]
[1736955478443,0.249996,3347.0,3346.8,0.238]
[1736955478850,0.249996,3346.6,3346.3,2.98837]
[1736955479050,0.249996,3346.3,3345.7,0.792]
[1736955479250,0.249996,3346.6,3346.3,2.98835]
[1736955479501,0.249996,3346.6,3346.0,2.98858]
[1736955479659,0.249996,3346.8,3346.5,2.98811]
[1736955479992,0.249996,3347.3,3346.6,0.792]
[1736955480195,0.249996,3347.5,3347.2,2.9875]
[1736955480359,0.249996,3347.5,3347.4,2.98739]
[1736955480857,0.249996,3347.5,3347.3,0.238]
[1736955481064,0.249996,3347.7,3347.3,0.238]
[1736955481262,0.249996,3347.7,3347.5,2.98727]
[1736955481466,0.249996,3347.7,3347.3,0.238]
[1736955481792,0.249996,3347.7,3347.4,2.98738]
[1736955481987,0.249996,3347.7,3347.5,2.98729]
[1736955482293,0.249996,3347.9,3347.8,2.98703]
[1736955482445,0.249996,3348.2,3347.7,2.98708]
[1736955482648,0.249996,3348.2,3347.9,2.9869]
[1736955483185,0.249996,3348.0,3347.5,9.6372]
[1736955483388,0.249996,3348.2,3347.7,3.0]
[1736955483715,0.249996,3348.9,3348.2,3.0]
[1736955483986,0.249996,3349.6,3349.3,2.98569]
[1736955484191,0.249996,3349.7,3349.4,0.238]
[1736955484352,0.249996,3349.8,3349.4,0.238]
[1736955484692,0.249996,3349.8,3349.7,2.98534]
[1736955484904,2.98404,3351.2,3349.4,0.238]
[1736955484905,0.249996,3350.3,3349.6,8.87]
[1736955485202,0.249996,3350.5,3349.7,8.87]
[1736955485347,0.249996,3350.7,3350.3,2.98479]
[1736955485551,0.249996,3350.7,3350.1,0.7511]
[1736955485794,0.249996,3350.7,3350.5,2.98456]
[1736955486091,0.249996,3350.7,3350.6,0.238]
[1736955486459,0.249996,3350.7,3350.6,3.22254]
[1736955486979,0.249996,3350.9,3350.8,2.98436]
[1736955487579,0.249996,3351.6,3350.9,2.9842]
[1736955487779,0.249996,3351.8,3350.8,0.322236]
[1736955487945,0.7924,3352.0,3351.1,0.7511]
[1736955487946,1.042396,3352.0,3351.1,0.7511]
[1736955488150,2.98242,3353.0,3351.1,0.7511]
[1736955488151,0.249996,3352.2,3351.4,2.98382]
[1736955488566,0.249996,3351.8,3351.2,8.87]
[1736955488974,0.249996,3351.8,3351.5,2.98365]
[1736955489391,0.249996,3351.8,3351.4,2.98374]
[1736955489697,0.249996,3351.4,3351.2,11.854]
[1736955490102,0.249996,3351.6,3351.2,8.87]
[1736955490309,0.7924,3352.5,3351.2,8.87]
[1736955490310,0.249996,3352.0,3351.3,2.98391]
[1736955490590,0.7924,3352.5,3351.3,2.98391]
[1736955490591,0.249996,3351.9,3351.7,2.98351]
[1736955490795,0.249996,3351.9,3351.8,0.238]
[1736955491093,0.7924,3352.5,3351.9,2.98336]
[1736955491094,0.249996,3352.1,3351.9,2.98336]
[1736955491547,0.249996,3352.3,3351.9,0.322136]
[1736955491752,0.249996,3352.3,3352.0,2.98321]
[1736955491993,0.249996,3351.9,3351.8,0.238]
[1736955492803,0.249996,3352.4,3352.3,2.98302]
[1736955492966,0.7924,3352.9,3351.9,2.98338]
[1736955492967,0.249996,3352.9,3352.6,2.98272]
[1736955493495,0.249996,3352.9,3351.9,9.6211]
[1736955493695,0.249996,3352.9,3352.7,2.98265]
[1736955493951,0.249996,3352.2,3351.9,3.7344]
[1736955494304,0.249996,3352.2,3351.9,3.73439]
[1736955494600,0.249996,3352.0,3351.6,2.98364]
[1736955494943,0.7924,3352.8,3351.2,0.43788911]
[1736955494944,0.249996,3351.7,3351.2,0.43788911]
[1736955495145,0.249996,3351.7,3351.3,0.23]
[1736955495642,0.249996,3351.7,3351.3,3.21391]
[1736955495845,0.249996,3351.3,3351.0,3.73526]
[1736955496003,0.249996,3351.6,3350.7,0.7511]
[1736955496207,0.7924,3352.3,3351.6,2.98357]
[1736955496439,0.7924,3352.3,3350.9,3.21427]
[1736955496440,0.249996,3351.7,3350.9,0.23]
[1736955496748,0.249996,3351.7,3351.5,2.98366]
[1736955496940,0.249996,3351.7,3351.0,1.0173336]
[1736955497344,0.249996,3351.7,3351.5,2.98368]
[1736955497578,0.249996,3352.1,3351.0,4.0173336]
[1736955497778,0.249996,3352.1,3351.8,2.98341]
[1736955498075,0.249996,3352.1,3351.6,2.98358]
[1736955498277,0.249996,3352.1,3351.3,2.98391]
[1736955498476,0.05135155,3352.3,3351.0,1.0173336]
[1736955498477,0.249996,3351.4,3351.0,2.98417]
[1736955498682,0.249996,3351.4,3351.1,2.98407]
[1736955498981,0.249996,3351.7,3351.4,2.98382]
[1736955499186,0.249996,3351.7,3351.5,2.98369]
[1736955499381,0.05470514,3352.1,3351.2,8.87]
[1736955499551,0.249996,3352.4,3352.2,2.9831]
[1736955499750,0.249996,3352.4,3352.3,0.23]
[1736955501311,0.799996,3352.4,3352.3,0.23]
[1736955501859,0.249996,3352.4,3352.3,0.23]
[1736955502042,0.249996,3352.4,3352.3,3.21302]
[1736955502641,0.249996,3352.6,3352.5,2.98284]
[1736955502842,0.249996,3352.6,3352.3,3.534302]
[1736955503284,0.249996,3352.6,3352.3,0.551302]
[1736955503487,0.249996,3352.6,3352.5,2.98284]
[1736955505759,0.249996,3352.8,3352.7,2.98267]
[1736955506161,0.249996,3353.0,3352.9,2.98249]
[1736955506362,0.799996,3353.0,3352.9,2.98249]
[1736955507074,0.249996,3352.7,3352.4,2.98287]
[1736955507275,0.249996,3352.7,3352.3,0.23]
[1736955507661,0.249996,3352.7,3352.5,2.98276]
[1736955507662,0.55,3352.6,3352.5,2.98276]
[1736955509972,0.249996,3352.7,3352.6,2.98275]
[1736955510189,0.249996,3352.9,3352.8,2.98258]
[1736955513084,0.1704739,3353.9,3353.4,2.98204]
[1736955513085,0.249996,3353.7,3353.4,2.98204]
[1736955513286,0.249996,3353.7,3353.6,2.98187]
[1736955514287,0.249996,3353.7,3353.5,0.23]
[1736955514491,0.55,3353.6,3353.5,0.23]
[1736955515128,1.3764,3353.6,3353.5,0.23]
[1736955515728,1.3764,3353.6,3353.5,0.20787361]
[1736955515933,0.55,3353.6,3353.5,0.20787361]
[1736955516095,0.249996,3353.8,3353.7,2.98175]
[1736955516296,0.1704739,3353.9,3353.8,2.98169]
[1736955516853,0.7204739,3353.9,3353.8,2.98169]
[1736955517207,0.1704739,3353.9,3353.8,2.98169]
[1736955517887,0.7204739,3353.9,3353.8,2.98169]
[1736955518294,0.249996,3353.7,3353.6,2.98183]
[1736955518587,0.7204739,3353.9,3353.3,4.28001976]
[1736955518588,0.799996,3353.4,3353.3,2.98209]
[1736955518791,0.799996,3353.4,3353.3,0.23]
[1736955519024,0.799996,3353.4,3353.3,3.21213]
[1736955519227,0.799996,3353.4,3353.3,0.23]
[1736955519401,0.799996,3353.0,3352.9,2.98246]
[1736955519732,0.55,3353.0,3352.9,3.21246]
[1736955519939,0.249996,3353.8,3352.9,3.831974]
[1736955520236,0.4204699,3353.9,3353.8,2.98169]
[1736955521041,0.55,3353.2,3352.9,0.849514]
[1736955521203,0.55,3353.2,3353.1,2.98231]
[1736955521629,0.55,3353.2,3352.9,3.21245]
[1736955521630,0.799996,3353.0,3352.9,3.21245]
[1736955521838,0.55,3353.0,3352.9,3.21245]
[1736955522033,0.1704739,3353.9,3353.4,0.7929]
[1736955522195,0.1704739,3353.9,3353.8,2.98169]
[1736955522393,0.1704739,3353.9,3353.8,3.578054]
[1736955522825,0.1704739,3353.9,3353.8,3.808054]
[1736955523637,0.1704739,3353.9,3353.8,0.23]
[1736955523857,0.249996,3353.5,3353.4,2.98204]
[1736955524133,0.799996,3353.5,3353.4,3.21204]
[1736955524911,0.799996,3353.5,3353.4,0.23]
[1736955525850,0.799996,3353.1,3353.0,2.98231]
[1736955526030,0.799996,3353.1,3353.0,3.21131]
[1736955526603,0.799996,3353.1,3353.0,0.229]
[1736955526804,0.55,3353.0,3352.3,3.77592]
[1736955527141,0.55,3353.0,3352.9,2.98249]
[1736955527142,0.799996,3353.0,3352.9,2.98249]
[1736955527431,0.799996,3352.6,3352.5,2.98281]
[1736955527872,0.799996,3352.6,3352.5,3.21181]
[1736955530026,0.799996,3352.6,3352.5,0.229]
[1736955530537,0.799996,3352.6,3352.2,35.0]
[1736955530738,0.799996,3352.3,3352.2,2.98311]
[1736955531052,0.249996,3352.3,3352.2,3.21211]
[1736955531448,0.799996,3352.1,3352.0,35.0]
[1736955531751,0.799996,3352.1,3352.0,0.229]